Cogmind - Beta 12 @@@ ROGUE MODE // 2023.03.26 @ 13:16:41 // Winter2019/RPGLIKE Player: ArabianSandBoa Result: Self-destructed Performance ------------- Evolutions (3) 1500 Regions Visited (17) 3400 Robots Destroyed (445) 2225 Value Destroyed (17201) 17201 Prototype IDs (50) 1000 Alien Tech Used (0) 0 Bonus (5905) 5905 TOTAL SCORE: 31231 Bonus ------- High Alert Combat Kills 5067 Follower Combat Kills 255 Entered Garrisons 600 Aligned with FarCom 300 Met Imprinter 300 Destroyed Z-Imprinter 1000 Friendly Fire -1617 Cogmind --------- Core Integrity 700/700 Matter 223/300 Energy 600/700 System Corruption 0% Temperature Cool (0) Movement Hovering (56) Location -7/Deep Caves Parts ------- > --- POWER (3) -------- Zionite Light DM Reactor > --- PROPULSION (2) --- Zionite Glidesys I Zionite Glidesys II > --- UTILITY (9) ------ Zionite Biocell 0b10 Decoder Chip [Generic] 0b10 Decoder Chip [Scout] Experimental Targeting Computer Experimental Armor Integrity Analyzer Experimental Reaction Control System Advanced Phase Shifter Zionite Weapon Casing Experimental System Shield > --- WEAPON (4) ------- 8R-AWN's Boregun 8R-AWN's Boregun > --- INVENTORY (6) ---- Improved Transmission Jammer Makeshift ECM Suite Remote Force Field Rocket Array CR-A16's Pointy Stick Peak State ------------ > --- POWER ------------ Neutrino Core Light Neutrino Core Light Particle Reactor > --- PROPULSION ------- Armored Huge Wheel > --- UTILITY ---------- Experimental Core Analyzer Experimental Armor Integrity Analyzer 8R-AWN's Armor/TH 8R-AWN's Armor/EX Experimental System Shield > --- WEAPON ----------- 8R-AWN's Boregun 8R-AWN's Boregun Rocket Array CR-A16's Pointy Stick > --- INVENTORY -------- Encrypted Comm Array Experimental Targeting Computer Advanced Weapon Cycler Improved Transmission Jammer Remote Force Field System Purifier [Rating: 150] Favorites ----------- Power Light Neutrino Core Engine Light Angular Momentum Engine Power Core Light Neutrino Core Reactor Light Particle Reactor Propulsion Armored Huge Wheel Treads Improved Treads Leg Aluminum Leg Wheel Armored Huge Wheel Hover Unit Zionite Glidesys I Utility Salvage Targeting Computer Device Advanced Weapon Cycler Storage Zionite Biocell Processor Salvage Targeting Computer Hackware Hacking Suite Protection Medium Reactive Plating Weapon 8R-AWN's Boregun Energy Gun Heavy EM Pulse Gun Energy Cannon Cooled Particle Cannon Ballistic Gun 8R-AWN's Boregun Ballistic Cannon Mass Driver Launcher Rocket Array Slashing Weapon Katana Piercing Weapon CR-A16's Pointy Stick Build | -11 -10 -10 -9 -9 -9 -8 -8 -8 -8 -8 -8 -8 -7 -7 -7 -7 -7 ------- Run | Jun Mat Min Mat Min Exi Min Mat Gar Mat Gar Mat Gar Fac Low Low Zio Dee Slots Evolved 14 | 4 2 1 3 . . . . 3 . . . . . . . 1 . Power 2 | . . . 1 . . . . 1 . . . . . . . . . Propulsion 1 | . 1 . . . . . . . . . . . . . . . . Utility 8 | 3 1 1 1 . . . . 1 . . . . . . . 1 . Weapon 3 | 1 . . 1 . . . . 1 . . . . . . . . . Parts Attached 169 | 4 22 4 26 7 27 14 6 16 1 1 . 4 6 1 . 17 13 Power 12 | . . 1 4 . 3 1 . 1 . . . . 1 . . . 1 Engine 5 | . . 1 4 . . . . . . . . . . . . . . Core 4 | . . . . . 2 . . 1 . . . . 1 . . . . Reactor 3 | . . . . . 1 1 . . . . . . . . . . 1 Propulsion 11 | 1 3 . 3 2 . . . . . . . . . . . . 2 Treads 6 | . 2 . 3 1 . . . . . . . . . . . . . Leg . | . . . . . . . . . . . . . . . . . . Wheel 3 | 1 1 . . 1 . . . . . . . . . . . . . Hover 2 | . . . . . . . . . . . . . . . . . 2 Flight . | . . . . . . . . . . . . . . . . . . Utility 96 | 2 9 2 7 3 13 13 6 14 . 1 . 4 1 1 . 12 8 Device 55 | 2 5 . 5 1 7 8 3 11 . 1 . 3 . 1 . 4 4 Storage 2 | . . . . . . 1 . . . . . . . . . . 1 Processor 18 | . 3 1 1 2 3 2 1 . . . . . . . . 5 . Hackware 5 | . 1 . . . . 1 1 . . . . 1 . . . 1 . Protection 16 | . . 1 1 . 3 1 1 3 . . . . 1 . . 2 3 Artifact . | . . . . . . . . . . . . . . . . . . Weapon 50 | 1 10 1 12 2 11 . . 1 1 . . . 4 . . 5 2 Energy Gun 8 | . 4 . . . . . . . . . . . 2 . . . 2 Energy Cannon 4 | . . 1 2 . . . . . . . . . 1 . . . . Ballistic Gun 19 | 1 2 . 6 1 6 . . . 1 . . . . . . 2 . Ballistic Cannon 3 | . 1 . . 1 . . . 1 . . . . . . . . . Launcher 7 | . 3 . 1 . 1 . . . . . . . 1 . . 1 . Special Weapon . | . . . . . . . . . . . . . . . . . . Impact Weapon . | . . . . . . . . . . . . . . . . . . Slashing Weapon 7 | . . . 3 . 4 . . . . . . . . . . . . Piercing Weapon 2 | . . . . . . . . . . . . . . . . 2 . Special Melee Weapon . | . . . . . . . . . . . . . . . . . . Unidentified Prototypes 31 | . . . 1 . 11 5 . . . . . . 1 . . 3 10 Corrupted Parts 1 | . . . 1 . . . . . . . . . . . . . . System Corruption 3 | . . . 3 . . . . . . . . . . . . . . Parts Lost 4 | . . . 2 . . . 1 . . . . . . . . 1 . Power . | . . . . . . . . . . . . . . . . . . Propulsion 1 | . . . 1 . . . . . . . . . . . . . . Utility 3 | . . . 1 . . . 1 . . . . . . . . 1 . Weapon . | . . . . . . . . . . . . . . . . . . Highest Loss Streak 2 | . . . 2 . . . 1 . . . . . . . . 1 . To Critical Strikes . | . . . . . . . . . . . . . . . . . . Average Slot Usage (%) 92 | . 96 99 98 96 83 85 90 91 93 94 94 93 93 94 94 74 87 Engine 5 | . 11 9 9 14 10 . . . . . . . . . . . . Core 5 | . . . . . 2 7 7 8 11 11 11 11 10 11 11 11 10 Reactor 2 | . . . . . 1 6 7 6 5 5 5 5 5 5 5 5 6 Treads 5 | . 6 19 15 8 . . . . . . . . . . . . . Wheel 4 | . 6 . . 2 7 7 7 6 5 5 5 5 5 5 5 5 3 Device 18 | . 33 5 7 7 10 14 20 22 29 29 29 29 29 29 29 5 8 Processor 19 | . 7 33 31 34 27 21 15 17 11 11 11 11 11 11 11 16 23 Hackware 5 | . 8 9 8 7 4 . 6 6 5 5 5 4 1 . . 3 5 Protection 2 | . . . 5 . 2 7 5 . . . . . 3 5 5 8 3 Energy Gun 2 | . 13 15 . . . . . . . . . . 5 . . . . Energy Cannon 1 | . . 4 3 . . . . . . . . . 1 5 5 . . Ballistic Gun 13 | . 7 . 12 20 8 21 21 19 22 23 23 23 12 11 11 7 11 Launcher 1 | . 1 . . . . . . . . . . . 2 5 5 4 5 Naked Turns . | . . . . . . . . . . . . . . . . . . Heaviest Build 116 | 9 14 26 38 33 77 65 61 74 74 68 67 73 101 101 96 116 83 Greatest Support 46 | 16 46 46 46 43 40 28 28 28 28 28 28 28 28 28 28 28 30 Greatest Overweight (x) 9 | . 4 . 5 9 2 2 2 2 2 2 2 2 3 3 3 4 4 Average Overweight (x) 1 | . . . . . . 1 1 1 2 2 2 2 2 3 3 2 2 Largest Inventory Capacity 6 | . 2 2 4 4 5 6 6 6 6 6 6 6 6 6 6 6 6 Average Capacity 4 | . . 2 3 4 4 5 6 6 6 6 6 6 6 6 6 6 6 Most Carried 6 | . 2 2 4 4 5 6 6 6 6 6 6 6 6 6 6 6 6 Average Carried 4 | . . 1 3 3 3 5 5 5 6 6 6 6 6 6 6 5 4 Final Capacity 6 | . 2 2 4 4 5 6 6 6 6 6 6 6 6 6 6 6 6 Final Carried 6 | . 2 2 4 4 5 6 6 6 6 6 6 6 6 6 6 5 5 Class Distribution -------------------- 42% | Scavenger-Mutant 35% | Hacker-Mutant 9% | Hacker-Gunner 6% | Hacker-Skirmisher Dominant Class ---------------- Hacker-Skirmisher | -10/Materials Hacker-Mutant | -10/Mines Hacker-Mutant | -9/Materials Hacker-Gunner | -9/Mines Hacker-Mutant | -9/Exiles Scavenger-Mutant | -8/Mines Scavenger-Mutant | -8/Materials Scavenger-Mutant | -8/Garrison Scavenger-Mutant | -8/Materials Scavenger-Mutant | -8/Garrison Scavenger-Mutant | -8/Materials Scavenger-Mutant | -8/Garrison Scavenger-Mutant | -7/Factory Scavenger-Mutant | -7/Lower Caves Scavenger-Mutant | -7/Lower Caves Hacker-Mutant | -7/Zion Hacker-Mutant | -7/Deep Caves Resources | -11 -10 -10 -9 -9 -9 -8 -8 -8 -8 -8 -8 -8 -7 -7 -7 -7 -7 ----------- Run | Jun Mat Min Mat Min Exi Min Mat Gar Mat Gar Mat Gar Fac Low Low Zio Dee Matter Collected 12257 | 254 722 53 1826 455 465 910 1143 1680 577 1067 . 1276 798 138 516 40 337 Remotely 88 | . 88 . . . . . . . . . . . . . . . . Salvage Created 18673 | 217 1623 506 2940 1180 380 842 2760 1617 1038 1090 . 1716 1199 367 915 . 283 Parts 1259 | 15 79 33 217 55 71 73 166 129 71 84 . 88 91 13 42 . 32 Haulers Intercepted 19 | . 2 . 6 . . . 4 . 4 . . . 3 . . . . Recyclers Shooed 10 | . 4 . 3 . . . 3 . . . . . . . . . . Parts Field Recycled . | . . . . . . . . . . . . . . . . . . Retrieved Matter . | . . . . . . . . . . . . . . . . . . Parts Self-Destructed 58 | . . . . . . . . . . . . . . 13 42 3 . Prevented . | . . . . . . . . . . . . . . . . . . Kills | -11 -10 -10 -9 -9 -9 -8 -8 -8 -8 -8 -8 -8 -7 -7 -7 -7 -7 ------- Run | Jun Mat Min Mat Min Exi Min Mat Gar Mat Gar Mat Gar Fac Low Low Zio Dee Combat Hostiles Destroyed 307 | . 19 4 57 17 3 14 41 39 14 26 . 30 18 8 14 . 3 Guns 285 | . 18 4 45 17 2 14 41 39 14 26 . 30 13 5 14 . 3 Cannons 8 | . . . 8 . . . . . . . . . . . . . . AOE 14 | . 1 . 4 . 1 . . . . . . . 5 3 . . . Classes Destroyed 25 | 3 5 . 5 2 1 1 3 2 . 1 . . . . . . 2 Worker 18 | 2 3 1 1 1 . 2 3 . 2 . . . 3 . . . . Builder 20 | . 3 . 5 . . 4 3 . 1 . . . 4 . . . . Tunneler 12 | 5 1 1 . 2 . 2 . . 1 . . . . . . . . Hauler 19 | . 2 . 6 . . . 4 . 4 . . . 3 . . . . Recycler 28 | 1 7 6 2 5 . 1 3 . 2 . . . 1 . . . . Carrier 2 | . . . . . . . 1 1 . . . . . . . . . Mechanic 3 | . . . 2 . . . 1 . . . . . . . . . . Operator 8 | . 2 . 2 . . . 2 . . . . . 2 . . . . Turret 1 | . . . . . 1 . . . . . . . . . . . . Watcher 15 | . 3 . 4 . . . 4 1 3 . . . . . . . . Swarmer 58 | . . . 13 4 . 4 12 6 4 5 . 4 3 3 . . . Grunt 160 | . 19 4 30 10 . 8 21 17 7 9 . 13 7 4 11 . . Brawler 13 | . . . 4 1 . . 2 3 . . . 1 1 . 1 . . Duelist 11 | . . . 3 1 . . 1 2 . 1 . 1 2 . . . . Protector 3 | . . . . . . . 1 . . . . . 2 . . . . Sentry 25 | . . . 7 . . . 2 4 2 3 . 5 1 . 1 . . Specialist 4 | . . . . . . . . . . 4 . . . . . . . Hunter 6 | . . . . . . 1 1 . 1 1 . 1 . 1 . . . Programmer 14 | . . . . . . . . 6 . 3 . 4 1 . . . . Heavy 2 | . . . . . . . 1 . . . . . 1 . . . . Behemoth 3 | . . . . . . . . 1 . . . 1 . . 1 . . Zionite 9 | . . . . 1 8 . . . . . . . . . . . . Z-Technician 1 | . . . . . . . . . . . . . . . . . 1 Z-Light 2 | . . . . . . . . . . . . . . . . . 2 Assembled 3 | . . . . 1 2 . . . . . . . . . . . . Thug 7 | . . 3 1 1 . . . . . 1 . 1 . . . . . Fireman 2 | . . . . . . . . . . . . . . . . . 2 Best Kill Streak 16 | 4 5 2 9 5 5 10 16 5 15 8 . 4 7 4 4 . 3 Combat Bots Only 12 | . 3 2 9 4 2 10 9 5 12 8 . 4 5 4 4 . 3 Max Kills in Single Turn 3 | 1 1 1 3 2 2 2 2 3 2 2 . 2 3 3 2 . 2 Gunslinging 1 | . . . 1 1 . . 1 . . . . . . . 1 . 1 Exploded 3 | . 1 . 3 . 1 . . . . . . . 3 3 . . . Melee . | . . . . . . . . . . . . . . . . . . Uniques/NPCs Destroyed 6 | . . . . . 4 1 . . . . . . . . . . 1 8R-AWN (-9/Exiles) EX-BIN (-9/Exiles) EX-DEC (-9/Exiles) EX-HEX (-9/Exiles) AD-0RF (-8/Mines) Z-Imprinter (-7/Deep Caves) Combat | -11 -10 -10 -9 -9 -9 -8 -8 -8 -8 -8 -8 -8 -7 -7 -7 -7 -7 -------- Run | Jun Mat Min Mat Min Exi Min Mat Gar Mat Gar Mat Gar Fac Low Low Zio Dee Damage Taken 9802 | . 550 408 2529 340 824 734 649 515 460 940 . 631 175 78 325 . 644 Core 7028 | . 444 333 1848 276 636 372 341 407 362 750 . 507 127 54 222 . 349 Absorbed by Shields 567 | . . . . . . . . 20 . . . 28 168 74 277 . . Redirected to Core 5956 | . 349 236 1489 208 554 349 314 372 316 638 . 421 113 44 204 . 349 Redirected to Shielding 204 | . . . . . . 10 194 . . . . . . . . . . Core Remaining (%) 94 | 100 . 100 . . . 82 . . . . . 97 . . . . . Volleys Fired 1210 | 14 170 37 271 44 48 45 94 128 47 86 . 101 60 10 43 . 12 Largest 4 | 2 2 2 3 3 3 2 2 4 3 2 . 2 4 2 2 . 2 Hottest 236 | 60 90 108 108 98 85 60 60 142 85 60 . 60 236 60 60 . 60 Shots Fired 2365 | 28 304 74 499 132 78 90 188 254 96 172 . 202 119 19 86 . 24 Gun 2266 | 28 298 69 427 131 76 90 188 246 96 172 . 202 115 18 86 . 24 Cannon 85 | . . 5 70 1 . . . 8 . . . . 1 . . . . Launcher 14 | . 6 . 2 . 2 . . . . . . . 3 1 . . . Special . | . . . . . . . . . . . . . . . . . . Kinetic 2053 | 14 164 . 424 132 76 90 188 254 96 172 . 202 113 18 86 . 24 Thermal 17 | 14 . . . . . . . . . . . . 3 . . . . Explosive 14 | . 6 . 2 . 2 . . . . . . . 3 1 . . . Electromagnetic 281 | . 134 74 73 . . . . . . . . . . . . . . Robot Hit Streak 34 | 10 16 12 34 14 21 16 13 13 7 10 . 15 24 11 28 . 12 Robot Miss Streak 6 | 2 4 4 3 2 2 2 4 5 3 2 . 2 3 6 2 . 2 Penetration Max 2 | . . . . . 2 1 2 2 2 1 . 2 2 1 1 . 1 Secondary Targets 31 | . 4 1 9 1 . 1 4 . 3 1 . 3 . . 2 . 2 Max Gunslinging Chain 1 | . 1 1 1 1 . 1 1 . 1 1 . 1 . . 1 . 1 Shots Hit Robots 1295 | 17 136 46 318 73 69 64 110 98 51 55 . 85 69 14 69 . 21 Core Hits 679 | 9 55 20 109 31 33 34 79 72 37 37 . 49 59 14 32 . 9 Critical Kills 169 | . 1 . . . 5 18 31 28 16 23 . 17 12 5 9 . 4 Critical Parts Destroyed 212 | . . . 2 . 8 22 34 26 20 21 . 36 16 2 19 . 6 Critical Strikes 391 | . 1 1 2 . 16 42 66 55 37 44 . 54 28 7 28 . 10 Destroy 388 | . 1 . 2 . 14 42 66 55 37 44 . 54 28 7 28 . 10 Corrupt 1 | . . 1 . . . . . . . . . . . . . . . Sever 2 | . . . . . 2 . . . . . . . . . . . . Melee Attacks 24 | . . . 6 . 16 . . . . . . . . . . 2 . Impact . | . . . . . . . . . . . . . . . . . . Slashing 22 | . . . 6 . 16 . . . . . . . . . . . . Piercing 2 | . . . . . . . . . . . . . . . . 2 . Sneak Attacks . | . . . . . . . . . . . . . . . . . . Combat Hostiles . | . . . . . . . . . . . . . . . . . . Follow-up Attacks 1 | . . . . . 1 . . . . . . . . . . . . Damage Inflicted 29727 | 175 2039 949 6153 1365 1599 1354 3091 2668 1588 1618 . 2516 2399 386 1410 . 417 Guns 26341 | 175 1884 682 4853 1365 1116 1354 2996 2668 1511 1611 . 2516 1545 238 1410 . 417 Cannons 880 | . . 78 802 . . . . . . . . . . . . . . Explosions 2105 | . 155 189 496 . 91 . 95 . 77 . . . 854 148 . . . Melee 392 | . . . . . 392 . . . . . . . . . . . . Ramming 9 | . . . 2 . . . . . . 7 . . . . . . . Kinetic 24424 | 54 876 . 4805 1365 1116 1354 2996 2668 1511 1611 . 2516 1487 238 1410 . 417 Thermal 675 | 121 129 189 83 . . . 95 . . . . . 58 . . . . Explosive 1428 | . . . 413 . 91 . . . . . . . 776 148 . . . Electromagnetic 2799 | . 1034 760 850 . . . . . 77 . . . 78 . . . . Impact . | . . . . . . . . . . . . . . . . . . Slashing 392 | . . . . . 392 . . . . . . . . . . . . Piercing . | . . . . . . . . . . . . . . . . . . Highest Corruption 4 | . . 1 4 4 4 . . 2 . . . 1 1 . . . . Average Corruption 3 | . . 1 3 4 3 . . 1 . . . 1 1 . . . . Corruption Purged 10 | . . . . . 4 . . 4 . . . 1 1 . . . . Corruption Blocked . | . . . . . . . . . . . . . . . . . . Effects 133 | . . 7 68 34 22 . . 1 . . . . 1 . . . . Message Errors 27 | . . 2 10 10 5 . . . . . . . . . . . . Matter Fused 29 | . . 2 14 6 7 . . . . . . . . . . . . Heat Flow Errors 11 | . . 1 5 3 1 . . . . . . . 1 . . . . Energy Discharges 15 | . . 1 7 5 2 . . . . . . . . . . . . Parts Rejected 5 | . . . 4 . 1 . . . . . . . . . . . . Parts Fused 2 | . . . 2 . . . . . . . . . . . . . . Data Loss (minor) 23 | . . . 12 6 4 . . 1 . . . . . . . . . Data Loss (major) 6 | . . 1 3 . 2 . . . . . . . . . . . . Misfires 7 | . . . 4 3 . . . . . . . . . . . . . Alerts 1 | . . . 1 . . . . . . . . . . . . . . Weapon Failures 7 | . . . 6 1 . . . . . . . . . . . . . Overload Shots . | . . . . . . . . . . . . . . . . . . Overflow Damage 70 | . . 15 35 . . . 20 . . . . . . . . . . Projectiles 14 | . . . 14 . . . . . . . . . . . . . . Explosions 56 | . . 15 21 . . . 20 . . . . . . . . . . Melee . | . . . . . . . . . . . . . . . . . . Knockbacks . | . . . . . . . . . . . . . . . . . . Impact . | . . . . . . . . . . . . . . . . . . Kinetic . | . . . . . . . . . . . . . . . . . . Secondary . | . . . . . . . . . . . . . . . . . . Self-Inflicted Damage 255 | . 96 57 20 . . . . . . 3 . . 79 . . . . Shots 9 | . 3 2 1 . . . . . . . . . 3 . . . . Rammed 2 | . . . 1 . . . . . . 1 . . . . . . . Targets Rammed 2 | . . . 1 . . . . . . 1 . . . . . . . Kicked . | . . . . . . . . . . . . . . . . . . Crushed . | . . . . . . . . . . . . . . . . . . Highest Temperature 439 | 40 173 261 439 220 223 276 160 139 10 33 . 170 374 42 68 . 51 Average Temperature 55 | 21 50 69 67 52 21 65 54 39 3 9 . 58 79 19 30 . 29 Received Heat Transfer 3660 | . 255 183 873 84 . 678 279 126 198 432 . 192 33 28 128 . 171 Effects 6 | . . . 3 . . . . . . . . . 3 . . . . Shutdowns 2 | . . . 1 . . . . . . . . . 1 . . . . Energy Bleed 1 | . . . . . . . . . . . . . 1 . . . . Interference 1 | . . . . . . . . . . . . . 1 . . . . Short Circuit 1 | . . . 1 . . . . . . . . . . . . . . Damage (minor) 1 | . . . 1 . . . . . . . . . . . . . . Siege Activations . | . . . . . . . . . . . . . . . . . . Robots Corrupted 1 | . . 1 . . . . . . . . . . . . . . . Combat Hostiles . | . . . . . . . . . . . . . . . . . . Parts Fried 19 | . 8 4 6 . . . . . 1 . . . . . . . . Impact Corruptions . | . . . . . . . . . . . . . . . . . . Robots Melted . | . . . . . . . . . . . . . . . . . . Combat Hostiles . | . . . . . . . . . . . . . . . . . . Parts Melted 3 | . . . . . . . . . . . . 1 . . . . 2 Heat Transferred 999 | 275 100 350 150 . . . 50 . . . . . 74 . . . . Parts Sabotaged . | . . . . . . . . . . . . . . . . . . Parts Stolen . | . . . . . . . . . . . . . . . . . . Parts Stripped . | . . . . . . . . . . . . . . . . . . Power Chain Reactions 9 | . 3 4 1 . . . . . 1 . . . . . . . . Missiles Intercepted . | . . . . . . . . . . . . . . . . . . Alert | -11 -10 -10 -9 -9 -9 -8 -8 -8 -8 -8 -8 -8 -7 -7 -7 -7 -7 ------- Run | Jun Mat Min Mat Min Exi Min Mat Gar Mat Gar Mat Gar Fac Low Low Zio Dee Peak Influence 2335 | 40 555 382 1608 960 . 350 874 2335 1318 2019 984 1981 1500 . . . . Initial 1138 | . 26 200 . 625 . . 81 566 1138 617 984 547 1039 . . . . Average 807 | 21 310 184 687 760 . 242 633 1525 913 1441 877 1338 1134 . . . . Maximum Alert Level 5 | . 2 1 5 3 . 1 3 5 4 5 3 5 4 . . . . Low Security (%) 15 | 100 33 59 15 . . 30 9 . . . . . . . . . . Level 1 15 | . 31 40 18 . . 69 8 . 2 . . . . . . . . Level 2 16 | . 34 . 22 21 . . 33 8 25 3 . 6 . . . . . Level 3 25 | . . . 20 78 . . 47 22 33 23 100 28 61 . . . . Level 4 13 | . . . 15 . . . . 19 38 24 . 27 38 . . . . Level 5 13 | . . . 7 . . . . 49 . 48 . 37 . . . . . High Security . | . . . . . . . . . . . . . . . . . . Max Security . | . . . . . . . . . . . . . . . . . . Sterilizations 1 | . . . 1 . . . . . . . . . . . . . . Squads Dispatched 44 | . 5 1 17 1 . 1 8 . 4 . . . 7 . . . . Investigation 21 | . 4 1 8 1 . . 4 . 1 . . . 2 . . . . Extermination 1 | . . . . . . . . . . . . . 1 . . . . Reinforcement 11 | . 1 . 4 . . 1 2 . 2 . . . 1 . . . . Assault 9 | . . . 5 . . . 1 . . . . . 3 . . . . Garrison 2 | . . . . . . . 1 . 1 . . . . . . . . Intercept . | . . . . . . . . . . . . . . . . . . Searches Triggered . | . . . . . . . . . . . . . . . . . . Construction Impeded 4 | . . . 2 . . 1 . . 1 . . . . . . . . Haulers Reinforced . | . . . . . . . . . . . . . . . . . . Active Scanning Responses . | . . . . . . . . . . . . . . . . . . Cargo Convoy Interrupts . | . . . . . . . . . . . . . . . . . . Stealth | -11 -10 -10 -9 -9 -9 -8 -8 -8 -8 -8 -8 -8 -7 -7 -7 -7 -7 --------- Run | Jun Mat Min Mat Min Exi Min Mat Gar Mat Gar Mat Gar Fac Low Low Zio Dee Distress Signals 8 | . 1 . 1 . . . 1 1 4 . . . . . . . . Communications Jammed 5 | . . . . . . . . . . . . . 5 . . . . Distress Signals 5 | . . . . . . . . . . . . . 5 . . . . Times Spotted 386 | . 32 3 87 16 22 15 47 39 22 29 . 28 22 7 14 . 3 Peak Tracking Total 10 | . 3 2 9 4 10 7 6 5 5 4 . 4 6 4 4 . 3 Tactical Retreats 37 | . 2 . 4 . 4 1 2 7 1 10 . 3 3 . . . . Traps | -11 -10 -10 -9 -9 -9 -8 -8 -8 -8 -8 -8 -8 -7 -7 -7 -7 -7 ------- Run | Jun Mat Min Mat Min Exi Min Mat Gar Mat Gar Mat Gar Fac Low Low Zio Dee Traps Triggered 16 | . . . 2 . . . . 3 . 7 . 3 1 . . . . Indirectly 1 | . . . . . . . . . . . . . 1 . . . . Trap Hack Attempts . | . . . . . . . . . . . . . . . . . . Triggered . | . . . . . . . . . . . . . . . . . . Disarmed . | . . . . . . . . . . . . . . . . . . Reprogrammed 16 | . 8 . . . . . 8 . . . . . . . . . . Reused 1 | . . . . . . . 1 . . . . . . . . . . Traps Extracted . | . . . . . . . . . . . . . . . . . . Installed . | . . . . . . . . . . . . . . . . . . Triggered 3 | . . . 1 1 . . 1 . . . . . . . . . . Exploded 3 | . . . . . 3 . . . . . . . . . . . . Machines | -11 -10 -10 -9 -9 -9 -8 -8 -8 -8 -8 -8 -8 -7 -7 -7 -7 -7 ---------- Run | Jun Mat Min Mat Min Exi Min Mat Gar Mat Gar Mat Gar Fac Low Low Zio Dee Machines Disabled 155 | . 22 4 45 2 13 . 10 17 6 10 . 12 12 . . . 2 Max in Single Turn 4 | . 3 1 4 1 2 . 2 2 2 1 . 2 2 . . . . Garrison Relay 17 | . . . . . . . . 6 . 5 . 6 . . . . . Machines Repaired 2 | . 1 . 1 . . . . . . . . . . . . . . Machines Sabotaged . | . . . . . . . . . . . . . . . . . . Overloaded Fab Kills . | . . . . . . . . . . . . . . . . . . Hacking | -11 -10 -10 -9 -9 -9 -8 -8 -8 -8 -8 -8 -8 -7 -7 -7 -7 -7 --------- Run | Jun Mat Min Mat Min Exi Min Mat Gar Mat Gar Mat Gar Fac Low Low Zio Dee Machines Accessed 63 | . 8 3 13 1 . . 7 3 6 4 2 4 10 . 1 1 . Terminals 44 | . 6 1 10 . . . 6 3 4 4 1 4 5 . . . . Fabricators 3 | . . . . . . . . . . . . . 3 . . . . Repair Stations . | . . . . . . . . . . . . . . . . . . Recycling Units 7 | . 2 . 2 . . . . . 1 . . . 2 . . . . Scanalyzers 1 | . . . 1 . . . . . . . . . . . . . . Garrison Access 3 | . . . . . . . 1 . 1 . 1 . . . . . . Total Hacks 279 | . 40 6 79 1 . . 35 9 36 12 9 13 32 . 1 6 . Successful 171 | . 25 3 61 1 . . 16 4 23 7 5 5 14 . 1 6 . Failed 106 | . 14 3 18 . . . 19 5 12 5 4 8 18 . . . . Catastrophic 11 | . 1 1 1 . . . 3 1 . 1 . . 3 . . . . Database Lockouts 2 | . 1 . . . . . . . 1 . . . . . . . . Manual 135 | . 20 2 40 . 1 . 20 4 12 7 7 1 16 . . 5 . Terminals 217 | . 32 4 62 . . . 34 9 31 12 8 13 12 . . . . Fabricators 12 | . . . . . . . . . . . . . 12 . . . . Repair Stations . | . . . . . . . . . . . . . . . . . . Recycling Units 32 | . 8 . 12 . . . . . 4 . . . 8 . . . . Scanalyzers 5 | . . . 5 . . . . . . . . . . . . . . Garrison Access 3 | . . . . . . . 1 . 1 . 1 . . . . . . Terminal Hacks 108 | . 16 3 34 1 . . 13 3 17 4 3 4 3 . 1 6 . Record 7 | . . . 5 . . . . . 2 . . . . . . . . Part Schematic 6 | . . . . . . . . . . . . . . . . 6 . Robot Analysis 10 | . 3 . 6 . . . 1 . . . . . . . . . . Prototype ID Bank 13 | . 5 . 4 . . . 1 . 2 . . . 1 . . . . Open Door 7 | . . 2 . 1 . . . 1 . 1 . 1 . . 1 . . Level Access Points 1 | . 1 . . . . . . . . . . . . . . . . Branch Access Points 3 | . . . 2 . . . . . . . . . 1 . . . . Emergency Access Points 7 | . . . 1 . . . 2 1 1 1 . 1 . . . . . Machine Index 1 | . . . . . . . 1 . . . . . . . . . . Terminal Index 1 | . . . 1 . . . . . . . . . . . . . . Repair Station Index 1 | . . . 1 . . . . . . . . . . . . . . Garrison Index 2 | . . . . . . . . . 1 . 1 . . . . . . Alert Level 1 | . . . . . . . . . 1 . . . . . . . . Unreport Threat 15 | . 1 . 4 . . . 3 . 6 . 1 . . . . . . Reprogram Traps 6 | . 2 . 1 . . . 2 . 1 . . . . . . . . Dispatch Records 2 | . . 1 1 . . . . . . . . . . . . . . Maintenance Status 1 | . . . 1 . . . . . . . . . . . . . . Investigation Status 1 | . . . 1 . . . . . . . . . . . . . . Recall Investigation 1 | . . . 1 . . . . . . . . . . . . . . Hauler Manifests 3 | . 1 . 1 . . . . . 1 . . . . . . . . Registered Components 3 | . 1 . 1 . . . 1 . . . . . . . . . . Registered Prototypes 1 | . . . . . . . . . 1 . . . . . . . . Zone Layout 10 | . 2 . 3 . . . 2 . 1 . 1 . 1 . . . . Garrison Registry 3 | . . . . . . . . 1 . 1 . 1 . . . . . Patrol Navigation 2 | . . . . . . . . . . 1 . 1 . . . . . Fabricator Hacks 4 | . . . . . . . . . . . . . 4 . . . . Network Status 3 | . . . . . . . . . . . . . 3 . . . . Build 1 | . . . . . . . . . . . . . 1 . . . . Repair Station Hacks . | . . . . . . . . . . . . . . . . . . Recycling Unit Hacks 6 | . 1 . 3 . . . . . . . . . 2 . . . . Report Inventory 5 | . 1 . 2 . . . . . . . . . 2 . . . . Retrieve Matter 1 | . . . 1 . . . . . . . . . . . . . . Scanalyzer 5 | . . . 5 . . . . . . . . . . . . . . Insert Component 3 | . . . 3 . . . . . . . . . . . . . . Analyze 2 | . . . 2 . . . . . . . . . . . . . . Garrison Access Hacks 3 | . . . . . . . 1 . 1 . 1 . . . . . . Unlock Access 3 | . . . . . . . 1 . 1 . 1 . . . . . . Unauthorized Hacks 45 | . 8 . 19 . . . 2 1 5 3 1 1 5 . . . . Terminals 25 | . 3 . 12 . . . 2 1 2 3 1 1 . . . . . Botnet 13 | . 2 . 5 . . . 2 . 2 1 1 . . . . . . Detonate 1 | . . . 1 . . . . . . . . . . . . . . Disrupt 1 | . . . 1 . . . . . . . . . . . . . . Sabotage 2 | . 1 . 1 . . . . . . . . . . . . . . Search 4 | . . . 4 . . . . . . . . . . . . . . Override 4 | . . . . . . . . 1 . 2 . 1 . . . . . Fabricators 3 | . . . . . . . . . . . . . 3 . . . . Report 1 | . . . . . . . . . . . . . 1 . . . . Fabnet 2 | . . . . . . . . . . . . . 2 . . . . Repair Stations . | . . . . . . . . . . . . . . . . . . Recycling Units 17 | . 5 . 7 . . . . . 3 . . . 2 . . . . Monitor 2 | . 1 . 1 . . . . . . . . . . . . . . Reject 5 | . 1 . 2 . . . . . 1 . . . 1 . . . . Mask 5 | . 1 . 2 . . . . . 1 . . . 1 . . . . Tunnel 5 | . 2 . 2 . . . . . 1 . . . . . . . . Scanalyzers . | . . . . . . . . . . . . . . . . . . Garrison Access . | . . . . . . . . . . . . . . . . . . Data Cores Recovered 2 | . . . . . . . 1 . . . . . 1 . . . . Used . | . . . . . . . . . . . . . . . . . . Hacking Detections 45 | . 7 1 11 . . . 7 2 4 3 1 2 7 . . . . Full Trace Events 16 | . 3 1 3 . . . 5 1 . . . 1 2 . . . . Feedback Events 2 | . . 1 . . . . . . . . . . 1 . . . . Corruption 2 | . . 1 . . . . . . . . . . 1 . . . . Feedback Blocked . | . . . . . . . . . . . . . . . . . . Robot Schematics Acquired 4 | . . . . . . . . . . . . . . . . 4 . Robots Built . | . . . . . . . . . . . . . . . . . . Authchips . | . . . . . . . . . . . . . . . . . . Time . | . . . . . . . . . . . . . . . . . . Total Robot Build Rating . | . . . . . . . . . . . . . . . . . . Part Schematics Acquired 23 | . . . 2 . . . . . . . . . . . . 21 . Parts Built 2 | . . . . . . . . . . . . . 2 . . . . Authchips . | . . . . . . . . . . . . . . . . . . Time 39 | . . . . . . . . . . . . . 39 . . . . Total Part Build Rating 14 | . . . . . . . . . . . . . 14 . . . . Parts Repaired . | . . . . . . . . . . . . . . . . . . Time . | . . . . . . . . . . . . . . . . . . Parts Recycled . | . . . . . . . . . . . . . . . . . . Recycled Matter . | . . . . . . . . . . . . . . . . . . Retrieved Matter 240 | . . . 240 . . . . . . . . . . . . . . Retrieved Components . | . . . . . . . . . . . . . . . . . . Parts Scanalyzed 2 | . . . 2 . . . . . . . . . . . . . . Part Schematics Acquired 2 | . . . 2 . . . . . . . . . . . . . . Parts Damaged . | . . . . . . . . . . . . . . . . . . Bothacking | -11 -10 -10 -9 -9 -9 -8 -8 -8 -8 -8 -8 -8 -7 -7 -7 -7 -7 ------------ Run | Jun Mat Min Mat Min Exi Min Mat Gar Mat Gar Mat Gar Fac Low Low Zio Dee Used RIF Installer . | . . . . . . . . . . . . . . . . . . Robots Hacked . | . . . . . . . . . . . . . . . . . . Non-combat . | . . . . . . . . . . . . . . . . . . Combat . | . . . . . . . . . . . . . . . . . . Robot Hacks Applied . | . . . . . . . . . . . . . . . . . . Relay Couplers Released 31 | . . . . . . . . 12 . 9 . 10 . . . . . Machine Destruction 29 | . . . . . . . . 10 . 9 . 10 . . . . . Programmers 2 | . . . . . . . . 2 . . . . . . . . . Fabnet Peak Effective % . | . . . . . . . . . . . . . . . . . . Robots Rewired 7 | . . . . . . . . 5 . . . 2 . . . . . Allies Hacked . | . . . . . . . . . . . . . . . . . . Hacks Repelled . | . . . . . . . . . . . . . . . . . . Allies | -11 -10 -10 -9 -9 -9 -8 -8 -8 -8 -8 -8 -8 -7 -7 -7 -7 -7 -------- Run | Jun Mat Min Mat Min Exi Min Mat Gar Mat Gar Mat Gar Fac Low Low Zio Dee Total Allies 20 | . . 4 . 2 . . . 7 . 1 . 2 . . . 4 . Largest Group 5 | . . 3 3 2 . . . 5 5 1 1 2 . . . 4 4 Highest-Rated Group 126 | . . 40 40 41 . . . 80 80 31 31 70 . . . 126 126 Highest-Rated Ally 39 | . . 31 16 31 . . . 31 16 31 31 39 . . . 39 39 Total Orders . | . . . . . . . . . . . . . . . . . . Ally Attacks 95 | . . . 15 . . . . 8 22 1 . 26 . . . . 23 Total Damage 3146 | . . . 193 . . . . 196 258 22 . 431 . . . . 2046 Kills 15 | . . . 1 . . . . 1 5 1 . 3 . . . . 4 Allies Corrupted 1 | . . . 1 . . . . . . . . . . . . . . Allies Melted . | . . . . . . . . . . . . . . . . . . Intel | -11 -10 -10 -9 -9 -9 -8 -8 -8 -8 -8 -8 -8 -7 -7 -7 -7 -7 ------- Run | Jun Mat Min Mat Min Exi Min Mat Gar Mat Gar Mat Gar Fac Low Low Zio Dee Robot Analysis Total 9 | . 2 . 6 . . . 1 . . . . . . . . . . Derelict Logs Recovered 8 | . . 2 . 2 . . . . . . . . . 2 1 1 . Drone Launches . | . . . . . . . . . . . . . . . . . . Drone Recoveries . | . . . . . . . . . . . . . . . . . . Exploration | -11 -10 -10 -9 -9 -9 -8 -8 -8 -8 -8 -8 -8 -7 -7 -7 -7 -7 ------------- Run | Jun Mat Min Mat Min Exi Min Mat Gar Mat Gar Mat Gar Fac Low Low Zio Dee Turns Passed 22047 | 126 2599 1267 3804 1359 1214 533 694 1474 313 1415 32 1355 1248 503 2045 1820 246 Spaces Moved 11572 | 19 1203 618 1550 814 867 151 348 680 134 766 23 761 651 307 1301 1256 123 Core 7 | . 3 . 3 1 . . . . . . . . . . . . . Treads 3194 | . 583 618 1547 446 . . . . . . . . . . . . . Legs 18 | 18 . . . . . . . . . . . . . . . . . Wheels 8324 | 1 617 . . 367 867 151 348 680 134 766 23 761 651 307 1301 1256 94 Hover 29 | . . . . . . . . . . . . . . . . . 29 Flight . | . . . . . . . . . . . . . . . . . . Fastest Speed 56 | 100 90 160 160 100 100 115 115 115 130 130 130 130 130 145 145 130 56 Average Speed 137 | 118 129 160 162 140 106 119 115 121 130 130 130 130 140 145 145 137 139 Slowest Speed 500 | 120 250 160 300 500 130 130 130 130 130 130 130 130 145 145 145 160 310 Overloaded Moves . | . . . . . . . . . . . . . . . . . . Propulsion Burnouts . | . . . . . . . . . . . . . . . . . . Robots Hopped . | . . . . . . . . . . . . . . . . . . Cave-ins Triggered . | . . . . . . . . . . . . . . . . . . Exploration Rate (%) 61 | 3 97 97 97 97 86 22 41 81 22 90 4 82 24 56 98 86 20 Regions Visited 17 Branch Regions 8 Pre-discovered Areas 12 | . 2 1 2 1 . . . . 1 . . . . 3 . 2 . Known Exits Taken 6 | . . 1 1 . . . 1 . 1 . 1 . 1 . . . . Unknown Exits Taken 8 | 1 1 . . 1 1 1 . . . . . . . 1 1 1 . Scrap Searched 9 | . . 2 . 1 . . . . . . . . . 2 2 2 . Spaces Dug 119 | . . . 1 . . . 1 5 60 9 . 4 39 . . . . Terrain Destroyed 1010 | . 125 39 297 11 22 56 103 44 97 57 . 42 74 18 22 . 3 Melee 1 | . . . 1 . . . . . . . . . . . . . . Projectile 314 | . . . . 1 2 55 65 34 43 54 . 36 5 . 18 . 1 AOE 657 | . 125 39 296 10 20 . 35 . 53 . . . 62 17 . . . Terrain Rammed . | . . . . . . . . . . . . . . . . . . Walls Destroyed . | . . . . . . . . . . . . . . . . . . Machines Disabled . | . . . . . . . . . . . . . . . . . . Actions | -11 -10 -10 -9 -9 -9 -8 -8 -8 -8 -8 -8 -8 -7 -7 -7 -7 -7 --------- Run | Jun Mat Min Mat Min Exi Min Mat Gar Mat Gar Mat Gar Fac Low Low Zio Dee Total 16001 | 95 1948 824 2415 980 1101 426 524 1173 214 1077 25 1001 906 352 1406 1354 180 Wait 2191 | 58 505 132 429 76 67 176 21 222 11 130 2 80 175 28 46 33 . Move 11556 | 18 1202 617 1549 813 866 150 348 679 134 765 23 758 650 306 1300 1255 123 Hop . | . . . . . . . . . . . . . . . . . . Pick Up 74 | . 4 5 11 5 24 . 4 . . . . . . . . 21 . Fast Attach 110 | 4 16 2 16 3 12 13 2 12 1 1 . 4 6 1 . 5 12 Attach 37 | . . 2 2 2 11 . 4 3 . . . . . . . 13 . Detach 26 | . 1 . 2 1 9 3 1 3 . . . . 1 . . 3 2 Swap 23 | . 6 . 8 2 4 1 . 1 . . . . . . . . 1 Drop 149 | 1 16 6 16 8 33 10 4 10 1 1 . 4 4 1 . 22 12 Fire 1210 | 14 170 37 271 44 48 45 94 128 47 86 . 101 60 10 43 . 12 Melee 23 | . . . 6 . 15 . . . . . . . . . . 2 . Ram 1 | . . . . . . . . . . 1 . . . . . . . Kick . | . . . . . . . . . . . . . . . . . . Crush 1 | . . . 1 . . . . . . . . . . . . . . Escape Stasis 87 | . . . . . . . . 23 . 48 . 16 . . . . . Rewire 31 | . . . . . . . . 26 . . . 5 . . . . . Trap . | . . . . . . . . . . . . . . . . . . Miscellaneous 482 | . 28 23 104 26 12 28 46 66 20 45 . 33 10 6 17 . 18 Route ------- -11/Junkyard -10/Materials (discovered 4 exits: *Mat x3 / *Min) -10/Mines (discovered 2 exits: *Mat x2) -9/Materials (discovered 4 exits: *Mat x3 / *Min) -9/Mines (discovered 3 exits: *Mat x2 / *Exi) -9/Exiles -8/Mines -8/Materials (discovered 4 exits: *Fac x2 / Sto / Gar) -8/Garrison (discovered 3 exits: *Mat x3) -8/Materials (discovered 3 exits: *Fac / *Sto / Gar) -8/Garrison (discovered 3 exits: *Mat x3) -8/Materials -8/Garrison (discovered 3 exits: *Fac x3) -7/Factory (discovered 2 exits: *Low x2) -7/Lower Caves -7/Lower Caves (discovered 2 exits: [*Fac] / *Zio) -7/Zion (discovered 2 exits: [*Dee] / [*Pro]) -7/Deep Caves History --------- Turn | Location | Event 6 | -11/Junkyard | Upgraded with Utility slot (x3) 6 | -11/Junkyard | Upgraded with Weapon slot (x1) 58 | -11/Junkyard | Discovered new exit (range 2) 127 | -11/Junkyard | Entered Materials 313 | -10/Materials | Build established: Mutant 638 | -10/Materials | Discovered new exit (range 16) 892 | -10/Materials | Build established: Scavenger-Skirmisher 1007 | -10/Materials | Reached level 2 1192 | -10/Materials | Central database locked down 1207 | -10/Materials | Discovered new exit (range 14) 1226 | -10/Materials | Identified exit to Materials 1322 | -10/Materials | Build established: Hacker-Skirmisher 1401 | -10/Materials | Reached level 3 1418 | -10/Materials | Upgraded with Utility slot (x1) 2179 | -10/Materials | Reached level 4 2188 | -10/Materials | Upgraded with Propulsion slot (x1) 2726 | -10/Materials | Entered Mines 2755 | -10/Mines | Build established: Hacker-Mutant 2762 | -10/Mines | Met a Derelict bent on vengeance 2924 | -10/Mines | Discovered exit to Materials (range 9) 3255 | -10/Mines | Received a Mining Laser from a helpful Derelict 3457 | -10/Mines | Met a Derelict who couldn't figure out how to use a Trap Extractor 3531 | -10/Mines | Assisted by bots powering up and referring to "LRC-V3" 3540 | -10/Mines | Learned Materials emergency access door positions 3829 | -10/Mines | Reached level 5 3875 | -10/Mines | Upgraded with Utility slot (x1) 3876 | -10/Mines | Found the Drone Emporium 3887 | -10/Mines | Found Prototype Device 3963 | -10/Mines | Discovered exit to Materials (range 16) 3993 | -10/Mines | Entered Materials 3993 | -9/Materials | Accompanied by 3 allies 3995 | -9/Materials | Reached level 6 4372 | -9/Materials | Discovered new exit (range 9) 4586 | -9/Materials | Reached level 7 4768 | -9/Materials | Identified Sensor Drone Bay 4987 | -9/Materials | Identified exit to Mines 5231 | -9/Materials | Reached level 8 5233 | -9/Materials | Upgraded with Utility slot (x1) 5334 | -9/Materials | Discovered new exit (range 8) 5539 | -9/Materials | Core integrity fell below 50% 5573 | -9/Materials | Core integrity fell below 20% 5707 | -9/Materials | Reached level 9 5983 | -9/Materials | Discovered new exit (range 3) 6393 | -9/Materials | First assault squad dispatched 6479 | -9/Materials | Reached level 10 6514 | -9/Materials | Destroyed 8 combat bots 6568 | -9/Materials | Upgraded with Power slot (x1) 6568 | -9/Materials | Upgraded with Weapon slot (x1) 7352 | -9/Materials | Sterilization system engaged 7352 | -9/Materials | Non-combat units ordered to evacuate 7360 | -9/Materials | Destroyed 9 combat bots 7452 | -9/Materials | Combat units ordered to evacuate 7652 | -9/Materials | Ambient heat levels rising (+10) 7797 | -9/Materials | Entered Mines 7803 | -9/Mines | Reached level 11 7920 | -9/Mines | Met a Derelict shopkeep closing up shop 7985 | -9/Mines | Excavation squad dispatched 7985 | -9/Mines | A large section of the Mines collapsed 8059 | -9/Mines | Discovered new exit (range 4) 8097 | -9/Mines | Build established: Hacker-Gunner 8200 | -9/Mines | Received a Rocket Launcher from a helpful Derelict 8314 | -9/Mines | Learned location of 1 exit from Materials 8439 | -9/Mines | Discovered new exit (range 9) 8449 | -9/Mines | Learned location of Storage (-8) 8702 | -9/Mines | Learned Materials emergency access door positions 9152 | -9/Mines | Deemed a non-threat by the Exiles lab entrance 9152 | -9/Mines | Discovered new exit (range 5) 9156 | -9/Mines | Entered Exiles 9206 | -9/Exiles | Met 8R-AWN 9223 | -9/Exiles | Met EX-HEX 9253 | -9/Exiles | Met EX-BIN 9264 | -9/Exiles | Aligned with FarCom system 9265 | -9/Exiles | Given EX-Vault access code 9400 | -9/Exiles | Met EX-DEC 9457 | -9/Exiles | Build established: Hacker-Mutant 9628 | -9/Exiles | Opened EX-Vault 9634 | -9/Exiles | Found Prototype Energy Gun 9641 | -9/Exiles | Found Prototype Processor 9665 | -9/Exiles | Warned to stay clear of 0b10 Research branches 9790 | -9/Exiles | Attacked by the Exiles 9903 | -9/Exiles | Found Prototype Ballistic Gun 9961 | -9/Exiles | Destroyed 8R-AWN 9965 | -9/Exiles | Found Prototype Processor 9965 | -9/Exiles | Identified Exp. Targeting Computer 9976 | -9/Exiles | Found Prototype Protection 9976 | -9/Exiles | Identified 8R-AWN's Armor/EX 9981 | -9/Exiles | Found Prototype Protection 9981 | -9/Exiles | Identified 8R-AWN's Armor/TH 9994 | -9/Exiles | Found Prototype Device 9994 | -9/Exiles | Identified AS-neutralizer No. 17b 10008 | -9/Exiles | Identified 8R-AWN's Boregun 10009 | -9/Exiles | Found 8R-AWN's Boregun 10118 | -9/Exiles | Destroyed EX-BIN 10147 | -9/Exiles | Destroyed EX-DEC 10177 | -9/Exiles | Found Prototype Device 10177 | -9/Exiles | Identified System Purifier 10190 | -9/Exiles | Found Prototype Processor 10190 | -9/Exiles | Identified Exp. Core Analyzer 10194 | -9/Exiles | Destroyed EX-HEX 10355 | -9/Exiles | Discovered new exit (range 14) 10369 | -9/Exiles | Build established: Scavenger-Mutant 10370 | -9/Exiles | Entered Mines 10444 | -8/Mines | Reached level 12 10465 | -8/Mines | AD-0RF came to Exiles' defense 10468 | -8/Mines | Destroyed 10 combat bots 10499 | -8/Mines | Destroyed AD-0RF 10561 | -8/Mines | Found Prototype Device 10561 | -8/Mines | Identified Exp. Thermal Shield 10577 | -8/Mines | Found Exp. Targeting Computer 10881 | -8/Mines | Discovered new exit (range 13) 10903 | -8/Mines | Entered Materials 10904 | -8/Materials | Identified exit to Storage 11018 | -8/Materials | Reached level 13 11067 | -8/Materials | Destroyed 8 combat bots 11129 | -8/Materials | Discovered new exit (range 3) 11303 | -8/Materials | First assault squad dispatched 11438 | -8/Materials | Discovered new exit (range 15) 11443 | -8/Materials | Destroyed 9 combat bots 11456 | -8/Materials | Identified exit to Factory 11509 | -8/Materials | Garrison activated, responded to threat 11531 | -8/Materials | Reached level 14 11565 | -8/Materials | Destroyed 8 combat bots 11597 | -8/Materials | Identified exit to Garrison 11597 | -8/Materials | Entered Garrison 11630 | -8/Garrison | Triggered checkpoint 11716 | -8/Garrison | Triggered checkpoint 11737 | -8/Garrison | Garrison Relay disabled 11842 | -8/Garrison | Triggered checkpoint 11930 | -8/Garrison | Triggered checkpoint 11989 | -8/Garrison | Discovered new exit (range 12) 11994 | -8/Garrison | Discovered new exit (range 16) 11994 | -8/Garrison | Discovered new exit (range 46) 11994 | -8/Garrison | Discovered new exit (range 57) 11994 | -8/Garrison | Identified exit to Materials 12016 | -8/Garrison | Triggered checkpoint 12064 | -8/Garrison | Garrison Relay disabled 12212 | -8/Garrison | Triggered checkpoint 12212 | -8/Garrison | Upgraded with Utility slot (x1) 12397 | -8/Garrison | Rescued a captive Derelict 12399 | -8/Garrison | Rescued a captive Derelict 12421 | -8/Garrison | Reached level 15 12422 | -8/Garrison | Triggered checkpoint 12518 | -8/Garrison | Spotted B-75 Beast 12544 | -8/Garrison | Destroyed B-75 Beast 12553 | -8/Garrison | Upgraded with Weapon slot (x1) 12554 | -8/Garrison | Upgraded with Power slot (x1) 12746 | -8/Garrison | Garrison Relay disabled 13071 | -8/Garrison | Entered Materials 13071 | -8/Materials | Accompanied by 5 allies 13071 | -8/Materials | Discovered exit to Storage (range 6) 13212 | -8/Materials | Central database locked down 13317 | -8/Materials | Garrison activated, responded to threat 13368 | -8/Materials | Discovered exit to Factory (range 13) 13371 | -8/Materials | Destroyed 12 combat bots 13384 | -8/Materials | Identified exit to Garrison 13384 | -8/Materials | Entered Garrison 13397 | -8/Garrison | Triggered checkpoint 13432 | -8/Garrison | Garrison Relay disabled 13451 | -8/Garrison | Identified exit to Materials 13810 | -8/Garrison | Triggered checkpoint 13821 | -8/Garrison | Destroyed 8 combat bots 13857 | -8/Garrison | Triggered checkpoint 13913 | -8/Garrison | Triggered checkpoint 13979 | -8/Garrison | Garrison Relay disabled 14076 | -8/Garrison | Triggered checkpoint 14245 | -8/Garrison | Core integrity fell below 50% 14363 | -8/Garrison | Garrison Relay disabled 14363 | -8/Garrison | Reached level 16 14507 | -8/Garrison | Triggered checkpoint 14544 | -8/Garrison | Rescued a captive Derelict 14597 | -8/Garrison | Discovered exit to Materials (range 75) 14597 | -8/Garrison | Discovered exit to Materials (range 51) 14597 | -8/Garrison | Discovered exit to Materials (range 6) 14799 | -8/Garrison | Entered Materials 14799 | -8/Materials | Accompanied by 1 ally 14831 | -8/Materials | Identified exit to Garrison 14831 | -8/Materials | Entered Garrison 14831 | -8/Garrison | Accompanied by 1 ally 14894 | -8/Garrison | Triggered checkpoint 14909 | -8/Garrison | Garrison Relay disabled 14909 | -8/Garrison | Garrison Relay disabled 15212 | -8/Garrison | Triggered checkpoint 15302 | -8/Garrison | Garrison Relay disabled 15445 | -8/Garrison | Triggered checkpoint 15514 | -8/Garrison | Discovered exit to Factory (range 12) 15524 | -8/Garrison | Discovered exit to Factory (range 12) 15524 | -8/Garrison | Discovered exit to Factory (range 45) 15524 | -8/Garrison | Discovered exit to Factory (range 49) 15580 | -8/Garrison | Triggered checkpoint 15676 | -8/Garrison | Spotted B-75 Beast 15686 | -8/Garrison | Destroyed B-75 Beast 15897 | -8/Garrison | Triggered checkpoint 15989 | -8/Garrison | Attempted to access garrison exit controls, blocked by remote lockdown 15992 | -8/Garrison | Build established: Hacker-Mutant 16186 | -8/Garrison | Entered Factory 16337 | -7/Factory | Fabricated Dispersion Rifle (x2) 16820 | -7/Factory | Build established: Scavenger-Mutant 16842 | -7/Factory | Reached level 17 16844 | -7/Factory | Found Rocket Array 16986 | -7/Factory | First assault squad dispatched 17270 | -7/Factory | Discovered new exit (range 16) 17394 | -7/Factory | Identified exit to Lower Caves 17434 | -7/Factory | Entered Lower Caves 17440 | -7/Lower Caves | Met a Warlord Commander 17441 | -7/Lower Caves | Learned location of Warlord (-5) 17445 | -7/Lower Caves | Found Encrypted Comm Array 17544 | -7/Lower Caves | Encountered a Warlord checkpoint 17876 | -7/Lower Caves | Discovered new exit (range 13) 17937 | -7/Lower Caves | Entered another Lower Caves area 17982 | -7/Lower Caves | Attracted the attention of an 0b10 checkpoint 18164 | -7/Lower Caves | Spotted B-75 Beast 18199 | -7/Lower Caves | Destroyed B-75 Beast 18266 | -7/Lower Caves | Encountered a Warlord checkpoint 18545 | -7/Lower Caves | Discovered new exit (range 9) 19429 | -7/Lower Caves | Learned location of 1 exit from Factory 19575 | -7/Lower Caves | Discovered new exit (range 11) 19982 | -7/Lower Caves | Entered Zion 19984 | -7/Zion | Reached level 18 19988 | -7/Zion | Upgraded with Utility slot (x1) 20016 | -7/Zion | Gained Derelict followers 20069 | -7/Zion | Acquired unknown access codes intercepted by a Zionite 20080 | -7/Zion | Discovered new exit (range 15) 20124 | -7/Zion | Found CR-A16's Pointy Stick 20399 | -7/Zion | Found Prototype Hackware 20400 | -7/Zion | Identified Exp. System Shield 20404 | -7/Zion | Found Prototype Processor 20405 | -7/Zion | Identified Exp. Armor Integrity Analyzer 20419 | -7/Zion | Found Exp. Targeting Computer 20590 | -7/Zion | Learned Factory emergency access door positions 20706 | -7/Zion | Build established: Hacker-Mutant 21504 | -7/Zion | Build established: Hacker-Gunner 21777 | -7/Zion | Opened final containment barrier to the Deep Caves 21798 | -7/Zion | Discovered new exit (range 3) 21798 | -7/Zion | Saw the warning signs outside the Deep Caves entrance 21802 | -7/Zion | Entered Deep Caves 21802 | -7/Deep Caves | Accompanied by 4 allies 21876 | -7/Deep Caves | Z-Facility disabled 21891 | -7/Deep Caves | Attacked by Z-Imprinter 21915 | -7/Deep Caves | Destroyed Z-Imprinter 21957 | -7/Deep Caves | Found Prototype Protection 21957 | -7/Deep Caves | Identified Zio. Weapon Casing 21960 | -7/Deep Caves | Found Prototype Device 21960 | -7/Deep Caves | Identified Zio. Metafield Generator 22047 | -7/Deep Caves | Found Zio. Weapon Casing 22048 | -7/Deep Caves | Self-destructed Last Messages --------------- 22009_ Identified Zio. Light DM Reactor. 22010_ Acquired 3 matter. 22013_ Dropped Adv. Weapon Cycler. 22014_ Acquired Prototype Protection. 22014_ Identified Zio. Light Carapace. 22015_ Dropped Zio. Light Carapace. 22021_ Acquired Prototype Storage. 22021_ Identified Zio. Biocell. 22028_ Acquired Prototype Energy Gun. 22028_ Identified Zio. Laser-M. 22036_ Dropped Zio. Laser-M. 22037_ Acquired Prototype Energy Gun. 22037_ Identified Zio. Laser-S. 22038_ Dropped Zio. Laser-S. 22040_ Acquired 92 matter. 22044_ Dropped Lgt. Particle Reactor. 22045_ Dropped Lgt. Neutrino Core. 22045_ Dropped Med. Reactive Plating. 22046_ Dropped Zio. Metafield Generator. 22047_ Acquired Zio. Weapon Casing. Map ----- +----------------------------------------------------+ | | | | | | | | | | | | | | | | | | | | | ?????????????????????????????????????????????????? | | ?????????????????????????????????????????????????? | | ????????????????????????????????####?????????????? | | ???????##??????????????????????## ##????????????? | | ?????### #??????######?????????# #????????????? | | ?? ## # ????### ##????????? #????????????? | | ##### #?????????# ##???????????? | | #????????## ##????###???? | | #???????## #???? #???? | | #????????# #???? #???? | | #????????# #???? #???? | | ##???##### #???? ###?? | | #####;;## #??## ??? | | = !g! ! ! ##?# #??? | | !*!!!!! % ## ### ##?# | | !*@ =! !#### ## | | ! !### [[ #??# | | *%= ###?##!* ##?## | | ]%*!! "#????#####??# | | |%% ##??????????## | | != #???????##### # | | #????# # | | #???? # | | #???? ## #### ## | | ##???? ???###???# #? | | #???????????????## ##? | | #???????????????## ##?? | | #????????????????#### #??? | | ##???????????????????## ##?# | | ##?????????????????????## ## | | #??????????????????????## | | ?????????????????????## | | ????????????????????## | | ??????????????????????# | | ??? ????????????????????????# | | ????? ???????????????????????????## | | ??????????????????????????????????????????## # | | ???????????????????????????????????????????# ## | | ???????????????????????????????????????????# #?# | | ???????????????????????????????????????????# ##?# | +----------------------------------------------------+ Best States ------------- Heat Dissipation 127 Coolant Potential 120 Energy Generation 59 Energy Capacity 850 Matter Stores 300 Matter Capacity 300 Sight Range 16 Terrain Scan Range 16 Terrain Scan Density 110 Jamming Range 14 Additional Mass Support 12 EM Shielding 3 Armor Coverage 1650 Resistance: KI 30 Resistance: TH 90 Resistance: EX 90 Weapon Shielding 90 Weapon Cycling 25 Phase Shifting 15 Evasion (%) 55 Targeting Accuracy 24 Core Analysis 8 Armor Integrity Analysis 50 Recoil Reduction 2 Matter Filtering 30 Kinecelleration 40 Salvage Targeting 5 Offensive Hacking 26 Defensive Hacking 26 Item Schematics ----------------- Enh. Autogun | -9/Materials | Scanalyzed Imp. Treads | -9/Materials | Scanalyzed Mak. System Shield | -7/Zion | Archive Matter Compressor | -7/Zion | Archive Adv. ECM Suite | -7/Zion | Archive Hvy. Flak Cannon | -7/Zion | Archive System Restoration Module | -7/Zion | Archive Lgt. Angular Momentum Engine | -7/Zion | Archive Gravmag System | -7/Zion | Archive KE Penetrator | -7/Zion | Archive Antigrav System | -7/Zion | Archive Component Analysis Suite | -7/Zion | Archive Coil Gun | -7/Zion | Archive Hvy. Rocket Launcher | -7/Zion | Archive Hyp. Gauss Rifle | -7/Zion | Archive Plasma Flamer | -7/Zion | Archive Weapon Cycler | -7/Zion | Archive Riot Gun | -7/Zion | Free Hvy. Riot Gun | -7/Zion | Free Battle Rifle | -7/Zion | Free Hvy. Battle Rifle | -7/Zion | Free Battle Cannon | -7/Zion | Free Tactical Coordination Suite | -7/Zion | Free Robot Schematics ------------------ L-31 Rogue | -7/Zion | Archive K-01 Serf | -7/Zion | Archive G-47 Trooper | -7/Zion | Archive Y-72 Warden | -7/Zion | Archive Fabricated ------------ Dispersion Rifle | x2 | -7/Factory | Preloaded Alien Tech Used ----------------- None Achievements -------------- None Challenges ------------ None RPGLIKE | -11 -10 -10 -9 -9 -9 -8 -8 -8 -8 -8 -8 -8 -7 -7 -7 -7 -7 --------- Run | Jun Mat Min Mat Min Exi Min Mat Gar Mat Gar Mat Gar Fac Low Low Zio Dee Levels Raised 17 | . 3 1 5 1 . 1 2 1 . 1 . . 1 . . 1 . XP Earned 28789 | 3000 4731 1300 8723 668 80 1304 2849 1652 491 786 3 667 1326 335 484 141 249 XP Spent 28010 | 2950 4350 1700 6970 . 1310 1500 600 4200 . . . 1500 330 . . 2600 . Upgrades 40 | 5 9 1 11 . 3 1 1 3 . . . 2 3 . . 1 . Power Slot 2 | . . . 1 . . . . 1 . . . . . . . . . Propulsion Slot 1 | . 1 . . . . . . . . . . . . . . . . Utility Slot 8 | 3 1 1 1 . . . . 1 . . . . . . . 1 . Weapon Slot 3 | 1 . . 1 . . . . 1 . . . . . . . . . Core Integrity 2 | . . . . . 2 . . . . . . . . . . . . Heat Dissipation 5 | . . . 2 . . . . . . . . . 3 . . . . Inventory Capacity 6 | . 2 . 2 . 1 1 . . . . . . . . . . . Terrain Scan Density 1 | 1 . . . . . . . . . . . . . . . . . Ranged Accuracy 5 | . 1 . 1 . . . 1 . . . . 2 . . . . . Hack Attack % 3 | . 2 . 1 . . . . . . . . . . . . . . Hack Defense % 2 | . 2 . . . . . . . . . . . . . . . . KI Damage % 2 | . . . 2 . . . . . . . . . . . . . . Protomatter Created 4946 | . 310 345 789 191 91 257 393 827 282 527 . 321 162 98 223 . 130 Integrity Restored 9812 | . 555 454 2161 526 273 627 921 1300 395 905 . 684 187 111 325 . 388 Core 7028 | . 444 333 1794 314 273 627 465 407 362 726 . 516 142 54 222 . 349 Parts 2784 | . 111 121 367 212 . . 456 893 33 179 . 168 45 57 103 . 39 Protomatter Decayed 2118 | . 110 150 278 27 . 113 127 428 181 216 . 193 88 50 105 52 . Game ------ Seed DispersionActivePlating Manual? 1 Play Time 02:38:56 Cumulative 501.6 hours Start 2023.03.22 @ 11:10:33 End 2023.03.26 @ 13:16:41 Sessions 35 Manual Loads 0 Difficulty Rogue Special Mode Winter2019/RPGLIKE Game No. 535 Rogue 535 Adventurer 0 Explorer 0 Win Type - Total 1 Types 1/0/0/0/0/0/0/0/0 Lore% 61 Gallery% 82 Achievement% 65 Wizard Run 0 Options --------- ASCII 0 Keyboard 0 Movement Mouse Keybinds 0 Fullscreen 2 Font 24/Smallcaps Map View 76x50 Tactical HUD 1 Map Filters NONE Filters NONE Steam 1 RUN: 627ef310-fc5a-49c4-b20a-cac6af6da985